bitfinex-derivatives/quotes_BTCF0:USTF0_20250602
["timestamp","ask_amount","ask_price","bid_price","bid_amount"]
[1748897179636,0.28842803,104820.0,104810.0,1.17386201]
[1748897179848,0.28842803,104820.0,104810.0,1.246232]
[1748897180039,0.28842803,104820.0,104810.0,1.71430201]
[1748897180239,0.28822803,104820.0,104810.0,1.71430201]
[1748897180439,0.28842803,104820.0,104810.0,1.786672]
[1748897180940,0.28842803,104820.0,104810.0,2.147472]
[1748897182141,0.28842803,104820.0,104810.0,2.07510201]
[1748897182550,0.28842803,104820.0,104810.0,1.8699693]
[1748897182749,0.32042803,104820.0,104810.0,1.8699693]
[1748897185347,0.28842803,104820.0,104810.0,2.07510201]
[1748897185549,0.28842803,104820.0,104810.0,2.17694723]
[1748897186439,0.28842803,104820.0,104810.0,2.07510201]
[1748897186645,0.28842803,104820.0,104810.0,2.13424065]
[1748897186848,0.28842803,104820.0,104810.0,2.17694513]
[1748897187147,0.28842803,104820.0,104810.0,2.17762513]
[1748897187749,0.28842803,104820.0,104810.0,1.97249242]
[1748897187948,0.35082803,104820.0,104810.0,1.72262448]
[1748897188153,0.56596074,104820.0,104810.0,1.5707293]
[1748897188450,0.59916074,104820.0,104810.0,1.54100778]
[1748897188648,0.39402803,104820.0,104810.0,1.58655581]
[1748897190339,0.39402803,104820.0,104810.0,1.58655679]
[1748897190649,0.39402803,104820.0,104810.0,1.51419831]
[1748897191454,0.36082803,104820.0,104810.0,1.54419831]
[1748897193950,0.35082803,104820.0,104810.0,1.54419831]
[1748897194153,0.35082803,104820.0,104810.0,1.4986493]
[1748897194353,0.35082803,104820.0,104810.0,1.54420108]
[1748897198049,0.19306773,104820.0,104810.0,2.10849127]
[1748897198251,0.19286773,104820.0,104810.0,2.18084975]
[1748897198454,0.19306773,104820.0,104810.0,2.18084975]
[1748897198651,0.19286773,104820.0,104810.0,2.18084975]
[1748897198855,0.19306773,104820.0,104810.0,2.18084975]
[1748897199258,0.00234303,104820.0,104810.0,2.18084975]
[1748897199559,0.19305413,104820.0,104810.0,2.18084975]
[1748897199858,0.19305413,104820.0,104810.0,2.26966298]
[1748897200655,0.19305413,104820.0,104810.0,2.24004832]
[1748897201852,0.19305413,104820.0,104810.0,2.24005124]
[1748897202060,0.00214303,104820.0,104810.0,2.24005124]
[1748897202262,0.00214303,104820.0,104810.0,2.2763206]
[1748897202455,0.00234303,104820.0,104810.0,2.2763206]
[1748897202657,0.00234303,104820.0,104810.0,2.1809126]
[1748897203056,0.00214303,104820.0,104810.0,2.1809126]
[1748897203250,0.00234303,104820.0,104810.0,2.1809126]
[1748897203452,0.00234303,104820.0,104810.0,2.09209937]
[1748897203652,0.00234303,104820.0,104810.0,2.18750737]
[1748897203853,0.3337017,104840.0,104830.0,0.1906929]
[1748897204049,0.3337017,104840.0,104830.0,2.03694297]
[1748897204348,0.3337017,104840.0,104830.0,2.18949365]
[1748897204758,0.3339017,104840.0,104830.0,2.18949365]
[1748897205068,0.3389017,104840.0,104830.0,2.23187293]
[1748897205362,0.3389017,104840.0,104830.0,2.18912619]
[1748897205749,0.3707017,104840.0,104830.0,2.18911467]
[1748897206458,0.3747017,104840.0,104830.0,2.18910846]
[1748897206654,0.3707017,104840.0,104830.0,2.22976544]
[1748897207150,0.3677017,104840.0,104830.0,2.24176544]
[1748897207857,0.3987017,104840.0,104830.0,2.24176544]
[1748897209558,0.3987017,104840.0,104830.0,1.80304544]
[1748897209759,0.4318017,104840.0,104830.0,2.24136544]
[1748897209956,0.4318017,104840.0,104830.0,1.75623273]
[1748897211363,0.4318017,104840.0,104830.0,1.69708205]
[1748897211665,0.4318017,104840.0,104830.0,1.80055151]
[1748897212257,0.4318017,104840.0,104830.0,1.25975151]
[1748897212566,0.4318017,104840.0,104830.0,1.74172083]
[1748897215869,0.4318017,104840.0,104830.0,1.74152083]
[1748897216769,0.4318017,104840.0,104830.0,1.99420833]
[1748897216965,0.4318017,104840.0,104830.0,2.05332115]
[1748897217264,0.4318017,104840.0,104830.0,2.25845386]
[1748897217463,0.4318017,104840.0,104830.0,2.10975545]
[1748897217661,0.4318017,104840.0,104830.0,2.19926695]
[1748897218561,0.4318017,104840.0,104830.0,2.12694461]
[1748897219567,0.4318017,104840.0,104830.0,2.12666461]
[1748897220068,0.4318017,104840.0,104830.0,2.19899088]
[1748897220373,0.4318017,104840.0,104830.0,1.58602461]
[1748897220669,0.4318017,104840.0,104830.0,2.12658461]
[1748897220869,0.4318017,104840.0,104830.0,2.03958716]
[1748897221069,0.4318017,104840.0,104830.0,2.12659332]
[1748897222362,0.4318017,104840.0,104830.0,2.185744]
[1748897222871,0.4418017,104840.0,104830.0,1.985744]
[1748897223681,0.4418017,104840.0,104830.0,1.24005129]
[1748897223874,0.64693441,104840.0,104830.0,0.85411986]
[1748897224073,0.4418017,104840.0,104830.0,0.84932198]
[1748897224375,0.1906929,104830.0,104820.0,0.00014303]
[1748897224565,1.55190561,104830.0,104820.0,0.00014303]
[1748897224877,1.97294405,104830.0,104820.0,0.00014303]
[1748897225572,1.97394405,104830.0,104820.0,0.01314303]
[1748897226175,1.97294405,104830.0,104820.0,0.00414303]
[1748897227573,1.76781134,104830.0,104820.0,0.00414303]
[1748897227770,1.97294405,104830.0,104820.0,0.00414303]
[1748897228167,1.73268207,104830.0,104820.0,0.00414303]
[1748897229876,1.52268207,104830.0,104820.0,0.00414303]
[1748897230571,1.59268207,104830.0,104820.0,0.00414303]
[1748897233180,1.79781478,104830.0,104820.0,0.00414303]
[1748897233372,0.39586161,104810.0,104800.0,0.87980299]
[1748897233576,0.40586161,104810.0,104800.0,0.61828299]
[1748897233880,0.46786161,104810.0,104800.0,0.54289924]
[1748897234580,0.46886161,104810.0,104800.0,0.37289924]
[1748897234780,0.46986161,104810.0,104800.0,0.38289924]
[1748897235085,0.46986161,104810.0,104800.0,0.02209924]
[1748897235276,0.46986161,104810.0,104800.0,0.04209924]
[1748897235980,0.46986161,104810.0,104800.0,0.02209924]
[1748897238779,0.46986161,104810.0,104800.0,0.05449924]
[1748897241384,0.51986161,104810.0,104800.0,0.05449924]
[1748897241573,0.51986161,104810.0,104800.0,0.05320842]
[1748897241772,0.78986161,104810.0,104800.0,0.05320842]
[1748897243388,0.78986161,104810.0,104800.0,0.02080842]
[1748897243772,0.2647289,104810.0,104800.0,0.02080842]
[1748897243983,0.46986161,104810.0,104800.0,0.02080842]
[1748897245887,0.2647289,104810.0,104800.0,0.02080842]
[1748897246082,0.46986161,104810.0,104800.0,0.02080842]
[1748897246282,0.46986161,104810.0,104800.0,0.01080842]
[1748897246579,0.46886161,104810.0,104800.0,0.00080842]
[1748897246977,0.46886161,104810.0,104800.0,0.03130842]
[1748897249485,0.47886161,104810.0,104800.0,0.03130842]
[1748897250681,0.51196161,104810.0,104800.0,0.06380842]
[1748897251585,0.51196161,104810.0,104800.0,0.10818519]
[1748897251784,0.51196161,104810.0,104800.0,0.10818221]
[1748897253887,0.51196161,104810.0,104800.0,0.13978221]
[1748897255784,0.51196161,104810.0,104800.0,0.13988234]
[1748897259699,0.87276161,104810.0,104800.0,0.13988234]
[1748897260192,0.87276161,104810.0,104800.0,0.1398933]
[1748897264195,0.87276161,104810.0,104800.0,0.13992203]
[1748897265982,0.87276161,104810.0,104800.0,0.13993447]
[1748897266596,0.87276161,104810.0,104800.0,0.13993476]
[1748897268300,0.87276161,104810.0,104800.0,0.09540842]
[1748897268491,0.87276161,104810.0,104800.0,0.13992476]
[1748897269290,0.87289481,104810.0,104800.0,0.13992476]
[1748897270495,0.86289481,104810.0,104800.0,0.13992476]
[1748897270699,1.07289481,104810.0,104800.0,0.13992476]
[1748897272500,1.07289481,104810.0,104800.0,0.13992561]
[1748897276599,1.07289481,104810.0,104800.0,0.13992714]
[1748897280501,1.07289481,104810.0,104800.0,0.13992858]
[1748897281209,0.3168289,104810.0,104800.0,0.50072858]
[1748897281400,0.48899481,104810.0,104800.0,0.57295574]
[1748897281596,0.78919481,104810.0,104800.0,0.77295574]
[1748897281803,0.81919481,104810.0,104800.0,0.77295574]
[1748897282003,0.81919481,104810.0,104800.0,0.41215574]
[1748897282210,0.81919481,104810.0,104800.0,0.77295574]
[1748897283108,0.61919481,104810.0,104800.0,0.77295574]
[1748897283306,0.80919481,104810.0,104800.0,0.77295574]
[1748897286309,0.3019289,104810.0,104800.0,1.65405792]
[1748897286702,0.2217289,104810.0,104800.0,1.75624745]
[1748897287011,0.39719481,104810.0,104800.0,1.71337169]
[1748897287307,0.39719481,104810.0,104800.0,1.65405792]
[1748897287505,0.39719481,104810.0,104800.0,1.75658917]
[1748897287900,0.39719481,104810.0,104800.0,1.78777852]
[1748897288614,0.39699481,104810.0,104800.0,1.78777852]
[1748897288810,0.39719481,104810.0,104800.0,1.78777852]
[1748897291314,0.39719481,104810.0,104800.0,1.78759552]
[1748897291507,0.39719481,104810.0,104800.0,1.86009554]
[1748897293717,0.39719481,104810.0,104800.0,1.81727192]
[1748897294116,0.1919289,104810.0,104800.0,1.81727192]
[1748897296218,0.1919289,104810.0,104800.0,1.75795815]
[1748897297515,0.1919289,104810.0,104800.0,1.96322406]
[1748897297818,0.1917289,104810.0,104800.0,2.05444374]
[1748897298415,0.1917289,104810.0,104800.0,1.99512997]
[1748897298613,0.001,104810.0,104800.0,1.99512997]
[1748897298817,0.191928,104810.0,104800.0,1.99512997]
[1748897299119,0.191728,104810.0,104800.0,1.99510472]
[1748897299418,0.191928,104810.0,104800.0,1.99510472]
[1748897300319,0.28622573,104820.0,104810.0,0.1907281]
[1748897300522,0.28622573,104820.0,104810.0,1.36651729]
[1748897300715,0.19085293,104820.0,104810.0,1.88753801]
[1748897300914,0.19085293,104820.0,104810.0,1.82837676]
[1748897301313,0.19105293,104820.0,104810.0,1.82837676]
[1748897302020,0.19905293,104820.0,104810.0,1.91810278]
[1748897302421,0.20705293,104820.0,104810.0,1.97819927]
[1748897303224,0.20705293,104820.0,104810.0,1.52276975]
[1748897303428,0.20705293,104820.0,104810.0,1.56545945]
[1748897303812,0.20705293,104820.0,104810.0,1.52269927]
[1748897306929,0.20705293,104820.0,104810.0,1.31759697]
[1748897307138,0.01634303,104820.0,104810.0,1.52269927]
[1748897307525,0.01634303,104820.0,104810.0,1.52267457]
[1748897308925,0.20705293,104820.0,104810.0,1.55223568]
[1748897309826,0.01634303,104820.0,104810.0,1.55223568]
[1748897310335,0.01634303,104820.0,104810.0,1.46350966]
[1748897310832,0.20705293,104820.0,104810.0,1.46350966]
[1748897314530,0.20705293,104820.0,104810.0,1.55223568]
[1748897315238,0.20705293,104820.0,104810.0,1.50783869]
[1748897315439,0.20705293,104820.0,104810.0,1.55224344]
[1748897316741,0.20705293,104820.0,104810.0,1.45683544]
[1748897317346,0.01634303,104820.0,104810.0,1.45682816]
[1748897317538,0.01634303,104820.0,104810.0,1.39773895]
[1748897317738,0.01634303,104820.0,104810.0,1.36817465]
[1748897317945,0.20705293,104820.0,104810.0,1.36817465]
[1748897318137,0.01634303,104820.0,104810.0,1.36817465]
[1748897318643,0.01614303,104820.0,104810.0,1.36817465]
[1748897318843,0.01634303,104820.0,104810.0,1.36817465]
[1748897319230,0.01634303,104820.0,104810.0,1.36817217]
[1748897322343,0.01634303,104820.0,104810.0,1.16306987]
[1748897322647,0.20705293,104820.0,104810.0,1.36811492]
[1748897322837,0.04844303,104820.0,104810.0,1.36811492]
[1748897323336,0.23915293,104820.0,104810.0,1.52889417]
[1748897323639,0.23915293,104820.0,104810.0,1.4402254]
[1748897323831,0.07934303,104820.0,104810.0,1.23508225]
[1748897324036,0.27005293,104820.0,104810.0,1.28039068]
[1748897324339,0.07934303,104820.0,104810.0,1.28039068]
[1748897324539,0.07934303,104820.0,104810.0,1.39880832]
[1748897324751,0.27005283,104820.0,104810.0,1.65357959]
[1748897324936,0.07934303,104820.0,104810.0,1.73784461]
[1748897325431,0.27005283,104820.0,104810.0,1.73784461]
[1748897326645,0.27005283,104820.0,104810.0,2.09864461]
[1748897326945,0.27005283,104820.0,104810.0,2.05596546]
[1748897327145,0.27005283,104820.0,104810.0,2.09873718]
[1748897327538,0.07934303,104820.0,104810.0,2.09873718]
[1748897327742,0.07934303,104820.0,104810.0,2.01447216]
[1748897328439,0.07934303,104820.0,104810.0,2.09901585]
[1748897333344,0.27005293,104820.0,104810.0,2.09901585]
[1748897333940,0.07934303,104820.0,104810.0,2.09901585]
[1748897335347,0.07934303,104820.0,104810.0,2.14188435]
[1748897335552,0.07934303,104820.0,104810.0,2.09911263]
[1748897336147,0.27005293,104820.0,104810.0,2.09911263]
[1748897337152,0.27005293,104820.0,104810.0,2.33268948]
[1748897338455,0.27005293,104820.0,104810.0,2.28731779]
[1748897338753,0.27005293,104820.0,104810.0,2.33268951]
[1748897339254,0.07934303,104820.0,104810.0,2.33269082]
[1748897340149,0.27005293,104820.0,104810.0,2.33269082]
[1748897341764,0.27005293,104820.0,104810.0,2.3326916]
[1748897342057,0.07934303,104820.0,104810.0,2.3326916]
[1748897342262,0.27005293,104820.0,104810.0,2.3326916]
[1748897342756,0.27005293,104820.0,104810.0,2.4356116]
[1748897343951,0.27005293,104820.0,104810.0,1.8939716]
[1748897344151,0.27005293,104820.0,104810.0,2.4355316]
[1748897344561,0.27005293,104820.0,104810.0,2.38585322]
[1748897344861,0.27005293,104820.0,104810.0,2.30130953]
[1748897345557,0.27005293,104820.0,104810.0,2.21314889]
[1748897345855,0.07934303,104820.0,104810.0,2.25594495]
[1748897346251,0.27005293,104820.0,104810.0,2.25594495]
[1748897346560,0.07934303,104820.0,104810.0,2.30132872]
[1748897346750,0.27005293,104820.0,104810.0,2.30132872]
[1748897348360,0.07934303,104820.0,104810.0,2.30132872]
[1748897349467,0.27005253,104820.0,104810.0,2.30132872]
[1748897349772,0.27005253,104820.0,104810.0,2.30134015]
[1748897350267,0.07934303,104820.0,104810.0,2.30134015]
[1748897350452,0.07934303,104820.0,104810.0,2.5064833]
[1748897350858,0.04844303,104820.0,104810.0,2.46368724]
[1748897351564,0.04844303,104820.0,104810.0,2.50650415]
[1748897352559,0.04844303,104820.0,104810.0,2.50650473]
[1748897354557,0.07934303,104820.0,104810.0,2.50651932]
[1748897354967,0.07934303,104820.0,104810.0,2.54934526]
[1748897355265,0.07934303,104820.0,104810.0,2.46111798]
[1748897355961,0.07934303,104820.0,104810.0,2.50652493]
[1748897358468,0.07934303,104820.0,104810.0,2.46111921]
[1748897358666,0.07934303,104820.0,104810.0,2.50652756]
[1748897359160,0.07934303,104820.0,104810.0,2.46111906]
[1748897359366,0.07934303,104820.0,104810.0,2.50652727]
[1748897359867,0.07934303,104820.0,104810.0,2.06788727]
[1748897360066,0.27005303,104820.0,104810.0,2.50660727]
[1748897360266,0.27005303,104820.0,104810.0,2.30146412]
[1748897361359,0.27005303,104820.0,104810.0,2.43580967]
[1748897362063,0.27005303,104820.0,104810.0,2.43536967]
[1748897363476,0.27005303,104820.0,104810.0,2.34280745]
[1748897363664,0.27005303,104820.0,104810.0,2.43537745]
[1748897364361,0.26985303,104820.0,104810.0,2.43537745]
[1748897367358,0.26985303,104820.0,104810.0,2.43540256]
[1748897367870,0.07914303,104820.0,104810.0,2.43540256]
[1748897368067,0.26985293,104820.0,104810.0,1.89420256]
[1748897368266,0.29995293,104820.0,104810.0,2.43508256]
[1748897369070,0.10924303,104820.0,104810.0,2.43508256]
[1748897369470,0.29995293,104820.0,104810.0,2.43508256]
[1748897371273,0.29995293,104820.0,104810.0,2.43508368]
[1748897372168,0.29995293,104820.0,104810.0,2.30072496]
[1748897373975,0.26985293,104820.0,104810.0,2.30072496]
[1748897374668,0.26985293,104820.0,104810.0,1.55470181]
[1748897374872,0.30185293,104820.0,104810.0,2.30068496]
[1748897375267,0.30185293,104820.0,104810.0,2.30070374]
[1748897378174,0.30185293,104820.0,104810.0,1.55472059]
[1748897378377,0.50699608,104820.0,104810.0,1.56365999]
[1748897378676,0.30185293,104820.0,104810.0,2.1774989]
[1748897382390,0.30185293,104820.0,104810.0,2.17747411]
[1748897382788,0.30185293,104820.0,104810.0,2.17751411]
[1748897382986,0.07914303,104820.0,104810.0,2.44535487]
[1748897383291,0.0953404,104840.0,104830.0,0.1906912]
[1748897383292,0.2383525,104840.0,104830.0,0.1906912]
[1748897383485,0.3321525,104840.0,104830.0,2.13002854]
[1748897383690,0.3323525,104840.0,104830.0,2.23815553]
[1748897384587,0.3553525,104840.0,104830.0,2.24015553]
[1748897385792,0.3553525,104840.0,104830.0,1.93212211]
[1748897385991,0.3553525,104840.0,104830.0,2.13726526]
[1748897387100,0.3553525,104840.0,104830.0,2.13723194]
[1748897387391,0.3553525,104840.0,104830.0,2.13722556]
[1748897387893,0.3553525,104840.0,104830.0,2.14672225]
[1748897389501,0.3553525,104840.0,104830.0,1.42512225]
[1748897389687,0.3553525,104840.0,104830.0,2.21921252]
[1748897389997,0.3553525,104840.0,104830.0,2.25111252]
[1748897391290,0.3553525,104840.0,104830.0,2.25112525]
[1748897391491,0.3553525,104840.0,104830.0,2.28222525]
[1748897392401,0.3553525,104840.0,104830.0,1.56062525]
[1748897392601,0.3553525,104840.0,104830.0,2.28222525]
[1748897395308,0.3553525,104840.0,104830.0,2.28222084]
[1748897395807,0.3553525,104840.0,104830.0,2.2525396]
[1748897397301,0.3247525,104840.0,104830.0,2.2525396]
[1748897399011,0.3247525,104840.0,104830.0,2.37105389]
[1748897399505,0.3245525,104840.0,104830.0,2.37104765]
[1748897399710,0.3247525,104840.0,104830.0,2.37104765]
[1748897400509,0.0864,104840.0,104830.0,2.37104765]
[1748897400710,0.213873,104840.0,104830.0,2.37104765]
[1748897401005,0.0232,104840.0,104830.0,2.37104765]
[1748897401205,0.213873,104840.0,104830.0,2.31182657]
[1748897401803,0.213873,104840.0,104830.0,2.31264914]
[1748897403307,0.245273,104840.0,104830.0,2.31264914]
[1748897404905,0.0232,104840.0,104830.0,2.31264914]
[1748897405112,0.023,104840.0,104830.0,2.28294053]
[1748897405504,0.0232,104840.0,104830.0,2.23671937]
[1748897406014,0.22399783,104850.0,104840.0,0.190673]
[1748897406213,0.22399783,104850.0,104840.0,1.34978313]
[1748897406413,0.22399783,104850.0,104840.0,1.39598513]
[1748897406414,0.22419783,104850.0,104840.0,1.39598513]
[1748897406915,0.22419783,104850.0,104840.0,1.45513683]
[1748897407315,0.22419783,104850.0,104840.0,1.60093376]
[1748897408103,0.22419783,104850.0,104840.0,1.61593376]
[1748897408309,0.22619783,104850.0,104840.0,1.63093376]
[1748897408708,0.22619783,104850.0,104840.0,1.70759978]
[1748897409110,0.52662053,104850.0,104840.0,0.49286802]
[1748897409411,0.52662053,104850.0,104830.0,0.11678478]
[1748897409412,0.190673,104840.0,104830.0,0.11678478]
[1748897409610,1.13037656,104840.0,104830.0,0.1168011]
[1748897409809,1.13037656,104840.0,104830.0,0.04437959]
[1748897410616,0.1906912,104830.0,104820.0,1.07736022]
[1748897410817,0.2851912,104830.0,104820.0,1.42736022]
[1748897411017,0.49039476,104830.0,104820.0,1.42736022]
[1748897411418,0.49039476,104830.0,104820.0,1.36818413]
[1748897411608,0.49039476,104830.0,104820.0,1.36918413]
[1748897412111,0.49039476,104830.0,104820.0,1.37418413]
[1748897412513,0.49039476,104830.0,104820.0,1.30176262]
[1748897412913,0.49039476,104830.0,104820.0,0.76132262]
[1748897413114,0.49039476,104830.0,104820.0,1.30180262]
[1748897413720,0.49039476,104830.0,104820.0,1.30181156]
[1748897413920,0.49039476,104830.0,104820.0,1.37423307]
[1748897414419,0.49039476,104830.0,104820.0,1.30181156]
[1748897415218,0.49039476,104830.0,104820.0,1.37423307]
[1748897417721,0.49039476,104830.0,104820.0,0.93607307]
[1748897417923,0.49039476,104830.0,104820.0,0.93604349]
[1748897418123,0.49039476,104830.0,104820.0,1.30178198]
[1748897418723,0.49039476,104830.0,104820.0,0.83372349]
[1748897418920,0.49039476,104830.0,104820.0,1.37420349]
[1748897419520,0.49039476,104830.0,104820.0,1.04420349]
[1748897420422,0.49039476,104830.0,104820.0,1.04419396]
[1748897420919,0.49039476,104830.0,104820.0,0.43129245]
[1748897421218,0.50039476,104830.0,104820.0,0.95177245]
[1748897421424,0.50039476,104830.0,104820.0,0.45712839]
[1748897421618,0.50039476,104830.0,104820.0,0.99760839]
[1748897421818,0.50039476,104830.0,104820.0,0.99759787]
[1748897422321,0.50039476,104830.0,104820.0,0.09631787]
[1748897422621,0.50039476,104830.0,104820.0,7e-08]
[1748897422622,1.44179433,104830.0,104820.0,7e-08]
[1748897422820,0.1907276,104810.0,104800.0,0.05998451]
[1748897423126,0.41593116,104810.0,104800.0,0.42998451]
[1748897423319,0.51033116,104810.0,104800.0,0.68814451]
[1748897423625,0.51033116,104810.0,104800.0,0.62896842]
[1748897423927,0.51033116,104810.0,104800.0,0.63096842]
[1748897424522,0.51633116,104810.0,104800.0,0.63196842]
[1748897424722,0.52333116,104810.0,104800.0,0.63096842]
[1748897428026,0.52333116,104810.0,104800.0,0.63104842]
[1748897429129,0.53300449,104810.0,104800.0,0.19280842]
[1748897429329,0.53300449,104810.0,104800.0,0.63104842]
[1748897429531,0.53300449,104810.0,104800.0,0.44104842]
[1748897431533,0.52333116,104810.0,104800.0,0.44104842]
[1748897432934,0.52333116,104810.0,104800.0,0.00280842]
[1748897433134,0.52333116,104810.0,104800.0,0.44104842]
[1748897433833,0.53272547,104810.0,104800.0,0.44104842]
[1748897435837,0.53272547,104810.0,104800.0,0.47134842]
[1748897437237,0.52333116,104810.0,104800.0,0.47134842]
[1748897437632,0.52333116,104810.0,104800.0,0.50184842]
[1748897437928,0.52333116,104810.0,104800.0,0.54674714]
[1748897439430,0.53333116,104810.0,104800.0,0.54674714]
[1748897441126,0.53333116,104810.0,104800.0,0.57674714]
[1748897442139,0.53333116,104810.0,104800.0,0.57678934]
[1748897443438,0.53333116,104810.0,104800.0,0.13854934]
[1748897443634,0.53333116,104810.0,104800.0,0.57678934]
[1748897443838,0.53333116,104810.0,104800.0,0.13854934]
[1748897444040,0.53333116,104810.0,104800.0,0.57678934]
[1748897445849,0.53333116,104810.0,104800.0,0.57681088]
[1748897447536,0.53333116,104810.0,104800.0,0.53184842]
[1748897448841,0.53333116,104810.0,104800.0,0.57682882]
[1748897450145,0.53333116,104810.0,104800.0,0.53184842]
[1748897450444,0.53333116,104810.0,104800.0,0.57685884]
[1748897452646,0.53333116,104810.0,104800.0,0.6492661]
[1748897453649,0.50193116,104810.0,104800.0,0.6492661]
[1748897454244,0.50193116,104810.0,104800.0,0.60425568]
[1748897454450,0.50193116,104810.0,104800.0,1.01016161]
[1748897456253,0.50193116,104810.0,104800.0,0.98098926]
[1748897458149,0.50193116,104810.0,104800.0,0.98098837]
[1748897458343,0.50193116,104810.0,104800.0,0.93775302]
[1748897458558,0.50193116,104810.0,104800.0,1.01036066]
[1748897458955,0.50193116,104810.0,104800.0,1.05359575]
[1748897460152,0.48193116,104810.0,104800.0,1.22359575]
[1748897461061,0.48193116,104810.0,104800.0,1.22359465]
[1748897461550,0.48193116,104810.0,104800.0,1.22355465]
[1748897462056,0.51473116,104810.0,104800.0,1.22355465]
[1748897462652,0.51473116,104810.0,104800.0,0.36891365]
[1748897462854,0.1907455,104800.0,104790.0,0.5814438]
[1748897463048,0.9384455,104800.0,104790.0,0.1469662]
[1748897463248,0.1907637,104790.0,104780.0,0.91505253]
[1748897463456,0.1907637,104790.0,104780.0,1.31829321]
[1748897463457,0.50301473,104790.0,104780.0,1.31829321]
[1748897463961,0.50301473,104790.0,104780.0,1.27463465]
[1748897464552,0.50301473,104790.0,104780.0,1.23139397]
[1748897465162,0.50399715,104790.0,104780.0,1.24039397]
[1748897465561,0.50499715,104790.0,104780.0,1.24739397]
[1748897466076,0.50499715,104790.0,104780.0,1.31249397]
[1748897466253,0.50499715,104790.0,104780.0,0.87429397]
[1748897466460,0.50499715,104790.0,104780.0,1.38811641]
[1748897466660,0.50499715,104790.0,104780.0,0.91691641]
[1748897466863,0.50499715,104790.0,104780.0,0.44919397]
[1748897467159,0.50499715,104790.0,104780.0,0.52659397]
[1748897467160,0.82439573,104790.0,104780.0,0.52659397]
[1748897467556,0.73499715,104790.0,104780.0,0.52659397]
[1748897468262,0.82439573,104790.0,104780.0,0.52659397]
[1748897468461,0.82439573,104790.0,104780.0,0.08839397]
[1748897468758,1.02972918,104790.0,104780.0,7e-08]
[1748897468957,0.9403306,104790.0,104780.0,7e-08]
[1748897469152,1.02972918,104790.0,104780.0,7e-08]
[1748897469353,1.39052918,104790.0,104780.0,7e-08]
[1748897471862,1.18519573,104790.0,104780.0,7e-08]
[1748897472065,0.82459573,104790.0,104780.0,0.36080007]
[1748897472253,0.46239715,104790.0,104780.0,0.78640007]
[1748897472651,0.2568637,104790.0,104780.0,0.97718197]
[1748897472864,0.2570637,104790.0,104780.0,0.97718197]
[1748897473163,0.2568637,104790.0,104780.0,0.97718197]
[1748897473354,0.2570637,104790.0,104780.0,0.97718197]
[1748897474861,0.2570637,104790.0,104780.0,1.02055918]
[1748897476564,0.2570637,104790.0,104780.0,1.02056029]
[1748897477267,0.2770637,104790.0,104780.0,0.70056029]
[1748897477863,0.2770637,104790.0,104780.0,1.13880029]
[1748897483665,0.48239715,104790.0,104780.0,1.13880029]
[1748897484559,0.48239715,104790.0,104780.0,1.09542197]
[1748897485663,0.48239715,104790.0,104780.0,1.13882088]
[1748897486271,0.48239715,104790.0,104780.0,0.70058088]
[1748897486470,0.48239715,104790.0,104780.0,1.24106088]
[1748897486970,0.48239715,104790.0,104780.0,1.2854749]
[1748897488865,0.51249715,104790.0,104780.0,0.656493]
[1748897489173,0.51249715,104790.0,104780.0,1.2854749]
[1748897489562,0.51249715,104790.0,104780.0,1.094693]
[1748897491672,0.51249715,104790.0,104780.0,0.624093]
[1748897491874,0.51249715,104790.0,104780.0,0.087813]
[1748897492065,0.51249715,104790.0,104780.0,0.525973]
[1748897492271,0.51249715,104790.0,104780.0,0.79896007]
[1748897492573,0.80705654,104790.0,104780.0,0.40429991]
[1748897492760,1.16785654,104790.0,104780.0,1e-08]
[1748897492959,1.53785654,104790.0,104780.0,1e-08]
[1748897493166,1.97601654,104790.0,104780.0,1e-08]
[1748897493361,1.8867906,104790.0,104780.0,1e-08]
[1748897493775,0.1907819,104780.0,104770.0,0.00224287]
[1748897493968,0.60317313,104780.0,104770.0,0.00224287]
[1748897495680,0.69317313,104780.0,104770.0,0.00224287]
[1748897495973,0.69417313,104780.0,104770.0,0.00524287]
[1748897496174,0.7045711,104780.0,104770.0,0.00524287]
[1748897500175,0.61521332,104780.0,104770.0,0.00524287]
[1748897500384,0.52521332,104780.0,104770.0,0.00524287]
[1748897500572,0.72521332,104780.0,104770.0,0.00524287]
[1748897500877,0.60521332,104780.0,104770.0,0.00524287]
[1748897502484,0.60521332,104780.0,104770.0,0.04524287]
[1748897504881,0.60521332,104780.0,104770.0,0.08834747]
[1748897505778,0.60521332,104780.0,104770.0,0.04834747]
[1748897506081,0.9345711,104780.0,104770.0,0.04834747]
[1748897506280,1.1145711,104780.0,104770.0,0.04834747]
[1748897507380,2.02938513,104780.0,104770.0,0.0431251]
[1748897507583,0.1908002,104770.0,104760.0,0.3608]
[1748897507785,0.57211756,104770.0,104760.0,0.3608]
[1748897508084,0.57211756,104770.0,104760.0,0.40393016]
[1748897508483,0.57211756,104770.0,104760.0,0.4470688]
[1748897508788,1.48933492,104770.0,104760.0,0.04313864]
[1748897509080,1.12953492,104770.0,104760.0,0.04513864]
[1748897509290,1.01350652,104770.0,104760.0,0.04513864]
[1748897509473,0.92414874,104770.0,104760.0,0.04513864]
[1748897510581,0.7187002,104770.0,104760.0,0.04513864]
[1748897510780,0.64414874,104770.0,104760.0,0.04513864]
[1748897510987,0.64414874,104770.0,104760.0,0.04313864]
[1748897512687,0.73350652,104770.0,104760.0,0.04313864]
[1748897513886,0.71911669,104770.0,104760.0,0.04313864]
[1748897516584,0.51366815,104770.0,104760.0,0.04313864]
[1748897516784,0.71911669,104770.0,104760.0,0.04313864]
[1748897519697,2.11591884,104770.0,104740.0,0.47994821]
[1748897519996,0.39628504,104750.0,104740.0,0.36290044]
[1748897520185,0.54628504,104750.0,104740.0,0.36290044]
[1748897520387,0.91298504,104750.0,104740.0,0.36290044]
[1748897521079,1.00327063,104750.0,104740.0,0.43543348]
[1748897521686,1.00527063,104750.0,104740.0,0.00210044]
[1748897521995,1.00827063,104750.0,104740.0,0.00210044]
[1748897523300,1.00827063,104750.0,104740.0,0.03420044]
[1748897523799,1.00827063,104750.0,104740.0,0.06580044]
[1748897524295,0.91898504,104750.0,104740.0,0.06580044]
[1748897525901,0.190873,104730.0,104720.0,0.1526067]
[1748897526189,0.49632154,104730.0,104720.0,0.37835342]
[1748897526391,0.59342154,104730.0,104720.0,0.37835342]
[1748897527298,0.59942154,104730.0,104720.0,0.37835342]
[1748897528295,0.60893514,104730.0,104720.0,0.41065342]
[1748897529197,0.59942154,104730.0,104720.0,0.41065342]
[1748897529400,0.59942154,104730.0,104720.0,0.96234462]
[1748897529401,0.270873,104730.0,104720.0,0.96234462]
[1748897529592,0.197073,104730.0,104720.0,1.43182462]
[1748897530491,0.197073,104730.0,104720.0,0.80265342]
[1748897530492,0.40252154,104730.0,104720.0,0.80265342]
[1748897530697,0.260273,104730.0,104720.0,1.43182462]
[1748897531193,0.260273,104730.0,104720.0,1.46472462]
[1748897531900,0.197073,104730.0,104720.0,1.71280008]
[1748897532692,0.197073,104730.0,104720.0,1.50735154]
[1748897533094,0.197073,104730.0,104720.0,1.46472462]
[1748897533291,0.197073,104730.0,104720.0,1.50735236]
[1748897533800,0.197073,104730.0,104720.0,1.60963461]
[1748897536087,0.196873,104730.0,104720.0,1.81508315]